bitfinex/quotes_BTCUSD_20251120
["timestamp","ask_amount","ask_price","bid_price","bid_amount"]
[1763622782790,0.07270515,92089.0,92088.0,0.22804059]
[1763622783002,0.05894249,92086.0,92083.0,0.01085976]
[1763622783235,0.05210249,92084.0,92083.0,0.01085976]
[1763622784003,0.05210249,92084.0,92082.0,0.33385988]
[1763622784257,0.21719296,92085.0,92082.0,0.323]
[1763622784462,0.06987277,92084.0,92078.0,0.323]
[1763622784661,0.06987277,92084.0,92069.0,0.29515534]
[1763622784662,0.01086189,92065.0,92059.0,0.07792788]
[1763622784869,0.01086189,92065.0,92048.0,0.10953537]
[1763622784870,0.05210249,92052.0,92045.0,0.01086425]
[1763622785074,0.05210249,92050.0,92047.0,0.01086401]
[1763622785227,0.05210249,92050.0,92044.0,0.01086436]
[1763622785228,0.06578249,92046.0,92044.0,0.01086436]
[1763622785434,0.05210249,92050.0,92041.0,0.21729216]
[1763622785641,0.01368,92041.0,92040.0,0.55116166]
[1763622785986,0.01368,92041.0,92040.0,0.22816166]
[1763622786384,0.05210249,92040.0,92037.0,0.01086519]
[1763622786597,0.06578249,92038.0,92035.0,0.01086543]
[1763622786830,0.06578249,92038.0,92029.0,0.01222012]
[1763622786831,0.05210249,92031.0,92029.0,0.01222012]
[1763622787116,0.06578249,92030.0,92029.0,0.00135398]
[1763622788299,0.07946249,92030.0,92029.0,0.00135398]
[1763622790955,0.40246249,92030.0,92029.0,0.00135398]
[1763622791435,0.42249796,92030.0,92029.0,0.00135398]
[1763622791637,0.4224993,92030.0,92029.0,0.00135398]
[1763622792831,0.4224993,92030.0,92029.0,3.98e-06]
[1763622793034,0.26944418,92021.0,92020.0,0.0004]
[1763622793231,0.62982125,92021.0,92020.0,0.0004]
[1763622793415,0.64350125,92021.0,92020.0,0.0004]
[1763622794228,0.62348418,92021.0,92020.0,0.0004]
[1763622794409,0.64347276,92021.0,92020.0,0.0004]
[1763622794606,0.64447276,92021.0,92020.0,0.0004]
[1763622794881,0.05210249,92015.0,92007.0,0.07415988]
[1763622795117,0.05210249,92015.0,92013.0,0.21736059]
[1763622795294,0.05210249,92013.0,92010.0,0.01086838]
[1763622797070,0.05210249,92013.0,92011.0,0.21736531]
[1763622797206,0.05210249,92017.0,92014.0,0.01086791]
[1763622797410,0.05210249,92015.0,92014.0,0.01086791]
[1763622797606,0.06578249,92015.0,92014.0,0.01086791]
[1763622798225,0.06946249,92015.0,92014.0,0.01086791]
[1763622799116,0.09006515,92015.0,92014.0,0.01086791]
[1763622799317,0.09006515,92015.0,92011.0,0.22823357]
[1763622799447,0.07262249,92012.0,92011.0,0.22823357]
[1763622799650,0.07262249,92012.0,92011.0,0.01086826]
[1763622799953,0.0629717,92003.0,91999.0,0.01086968]
[1763622800176,0.05210249,92001.0,91998.0,0.0108698]
[1763622800372,0.05210249,92001.0,91994.0,0.21740505]
[1763622800373,0.05210249,91998.0,91994.0,0.01087027]
[1763622800571,0.05210249,91994.0,91991.0,0.01087062]
[1763622800791,0.05210249,91989.0,91988.0,0.22828835]
[1763622800989,0.05578249,91989.0,91988.0,0.22828835]
[1763622801332,0.05210249,92006.0,92004.0,0.21738185]
[1763622801567,0.05210249,92011.0,92010.0,0.21736767]
[1763622801754,0.06578249,92011.0,92007.0,0.01086873]
[1763622801992,0.05210249,92009.0,92005.0,0.01086897]
[1763622802192,0.05894249,92012.0,92011.0,0.21736531]
[1763622802633,0.07630249,92012.0,92011.0,0.21736531]
[1763622804491,0.07630249,92012.0,92008.0,0.01086862]
[1763622804492,0.05210249,92011.0,92008.0,0.01086862]
[1763622804690,0.06578249,92009.0,92008.0,0.22824065]
[1763622805220,0.06578249,92009.0,92006.0,0.01086885]
[1763622805381,0.06578249,92009.0,92008.0,0.22824065]
[1763622805584,0.06578249,92009.0,92008.0,0.22884876]
[1763622805848,0.07270515,92017.0,92011.0,0.22823357]
[1763622806054,0.01368,92031.0,92017.0,0.21735114]
[1763622806055,0.02428266,92018.0,92017.0,0.21735114]
[1763622806260,0.00368,92018.0,92016.0,0.01086767]
[1763622806433,0.01368,92017.0,92011.0,0.01086826]
[1763622806630,0.01368,92017.0,92014.0,0.22822414]
[1763622806631,0.07270515,92016.0,92014.0,0.22822414]
[1763622807035,0.05210249,92017.0,92015.0,0.22822365]
[1763622807443,0.01368,92016.0,92015.0,0.22822365]
[1763622808551,0.01736,92016.0,92015.0,0.22822365]
[1763622808959,0.01736,92016.0,92015.0,0.01086779]
[1763622809176,0.01736,92016.0,91990.0,0.01137]
[1763622809177,0.05210249,92013.0,91990.0,0.01137]
[1763622809532,0.05210249,92011.0,92006.0,0.01086885]
[1763622809725,0.05210249,92009.0,92007.0,0.22824349]
[1763622809898,0.05210249,92006.0,92003.0,0.21738421]
[1763622810109,0.05210249,92004.0,91997.0,0.21739641]
[1763622810286,0.05210249,92004.0,92003.0,0.21738421]
[1763622810485,0.05210249,92004.0,92001.0,0.01086944]
[1763622810692,0.05210249,92004.0,92003.0,0.21738421]
[1763622811487,0.06578249,92004.0,92001.0,0.01086944]
[1763622811685,0.07270515,92004.0,92002.0,0.21738481]
[1763622811814,0.07270515,92004.0,92003.0,0.00075294]
[1763622812206,0.08638515,92004.0,92003.0,0.00075294]
[1763622812849,0.07270515,92004.0,92003.0,0.21813715]
[1763622813071,0.05210249,92004.0,92003.0,0.21813715]
[1763622815683,0.06578249,92004.0,92003.0,0.21813715]
[1763622816441,0.08590944,92004.0,92003.0,0.21813715]
[1763622817234,0.1065121,92004.0,92003.0,0.21813715]
[1763622818165,0.07222944,92004.0,92003.0,0.58061715]
[1763622818291,0.02383228,92004.0,92003.0,0.58061715]
[1763622818715,0.05210249,92024.0,92023.0,0.21733697]
[1763622818906,0.0759371,92024.0,92023.0,0.21733697]
[1763622819112,0.0722571,92024.0,92023.0,0.23282697]
[1763622819325,0.02383461,92024.0,92021.0,0.01086708]
[1763622819560,0.02383461,92024.0,92018.0,0.01086743]
[1763622819561,0.01368,92022.0,92019.0,0.01086732]
[1763622819889,0.02015227,92021.0,92020.0,0.0108672]
[1763622820245,0.10653742,92021.0,92020.0,0.0108672]
[1763622820659,0.05210249,92018.0,92011.0,0.21736326]
[1763622820992,0.06578249,92013.0,92012.0,0.21736295]
[1763622821185,0.08961476,92013.0,92012.0,0.21736295]
[1763622824382,0.09006515,92013.0,92012.0,0.21736295]
[1763622824787,0.09006515,92013.0,92012.0,0.21785521]
[1763622825671,0.01087275,91973.0,91970.0,0.21039999]
[1763622825907,0.59256234,91971.0,91970.0,0.0004]
[1763622826118,0.61269722,91971.0,91970.0,0.0004]
[1763622826342,0.39891737,91971.0,91970.0,0.0004]
[1763622826555,0.61637722,91971.0,91970.0,0.0004]
[1763622826776,0.61634783,91971.0,91970.0,0.0004]
[1763622827643,0.61634783,91971.0,91970.0,0.0014]
[1763622828069,0.61634783,91971.0,91970.0,0.0004]
[1763622828281,0.61734783,91971.0,91970.0,0.0004]
[1763622828869,0.69814813,91971.0,91970.0,0.0004]
[1763622829068,0.69914813,91971.0,91970.0,0.0004]
[1763622829472,0.61734783,91971.0,91970.0,0.0004]
[1763622830466,0.6974188,91971.0,91970.0,0.0004]
[1763622830690,0.6974188,91971.0,91940.0,0.0002]
[1763622830691,0.2175308,91941.0,91940.0,0.0002]
[1763622830899,0.05578249,91941.0,91940.0,0.0002]
[1763622833476,0.05210249,91941.0,91940.0,0.01569]
[1763622833695,0.05578249,91941.0,91940.0,0.03968]
[1763622833897,0.05578249,91941.0,91940.0,0.0417667]
[1763622834731,0.05210249,91941.0,91940.0,0.0417667]
[1763622835139,0.05578249,91941.0,91940.0,0.0417667]
[1763622836655,0.05578249,91941.0,91940.0,0.06352001]
[1763622836656,0.05210249,91941.0,91940.0,0.06352001]
[1763622836935,0.03147695,91960.0,91940.0,0.06352001]
[1763622836936,0.05210249,91959.0,91957.0,0.01087464]
[1763622837159,0.02060266,91971.0,91965.0,0.0108737]
[1763622837355,0.05210249,91969.0,91968.0,0.22834028]
[1763622837492,0.02060266,91975.0,91972.0,0.01087287]
[1763622837699,0.00368,91974.0,91973.0,0.21745512]
[1763622837937,0.05210249,91974.0,91973.0,0.21745512]
[1763622838352,0.02060266,91985.0,91981.0,0.01087181]
[1763622838651,0.01087192,91980.0,91971.0,0.01087299]
[1763622838855,0.05210249,91977.0,91970.0,0.01087311]
[1763622839053,0.05210249,91975.0,91970.0,0.01087311]
[1763622839212,0.05210249,91973.0,91970.0,0.01087311]
[1763622839421,0.05210249,91971.0,91970.0,0.01087311]
[1763622839797,0.05210249,91971.0,91968.0,0.01087334]
[1763622840138,0.05210249,91969.0,91968.0,0.01087334]
[1763622840339,0.06297595,91967.0,91960.0,0.01087429]
[1763622840508,0.02060266,91966.0,91961.0,0.01087417]
[1763622840884,0.02060266,91966.0,91960.0,0.22835803]
[1763622841010,0.02060266,91966.0,91960.0,0.01087429]
[1763622841217,0.05210249,91964.0,91959.0,0.01087441]
[1763622841431,0.05210249,91962.0,91957.0,0.21749271]
[1763622841646,0.05210249,91962.0,91940.0,0.34250463]
[1763622841647,0.01087441,91959.0,91951.0,0.01087535]
[1763622841855,0.05210249,91953.0,91948.0,0.01087571]
[1763622842083,0.05210249,91951.0,91949.0,0.21751188]
[1763622842289,0.05578249,91950.0,91949.0,0.21751188]
[1763622842501,0.05210249,91950.0,91949.0,0.21751188]
[1763622842727,0.05210249,91950.0,91949.0,0.23344188]
[1763622842940,0.02060266,91969.0,91968.0,0.21746694]
[1763622843150,0.05578249,91969.0,91968.0,0.24040028]
[1763622843352,0.05210249,91969.0,91968.0,0.24040028]
[1763622843568,0.05578249,91969.0,91968.0,0.28037028]
[1763622844459,0.05578249,91969.0,91968.0,0.25633028]
[1763622844685,0.05678249,91969.0,91968.0,0.25633028]
[1763622845722,0.05678249,91969.0,91968.0,0.02799]
[1763622845928,0.05678249,91969.0,91968.0,0.01206]
[1763622847643,0.05210249,91968.0,91967.0,0.22834079]
[1763622847861,0.00468,91969.0,91960.0,0.01206]
[1763622848064,0.28044697,91967.0,91962.0,0.01087405]
[1763622848266,0.28044697,91967.0,91960.0,0.21748493]
[1763622848267,0.06297619,91965.0,91960.0,0.01087429]
[1763622848490,0.06297619,91965.0,91959.0,0.01087441]
[1763622848491,0.06297642,91963.0,91959.0,0.01087441]
[1763622848708,0.05210249,91961.0,91958.0,0.01087452]
[1763622848914,0.05210249,91959.0,91958.0,0.01087452]
[1763622849127,0.05210249,91959.0,91953.0,0.01206]
[1763622849335,0.02428266,91958.0,91955.0,0.21749768]
[1763622849543,0.00368,91958.0,91955.0,0.21749768]
[1763622849764,0.05578249,91958.0,91957.0,0.21749295]
[1763622851529,0.05578249,91958.0,91957.0,0.23342295]
[1763622851867,0.05578249,91958.0,91957.0,0.25746295]
[1763622853058,0.05210249,91958.0,91957.0,0.25746295]
[1763622853229,0.05578249,91958.0,91957.0,0.58046295]
[1763622853435,0.05210249,91958.0,91957.0,0.58205666]
[1763622853861,0.05578249,91958.0,91957.0,0.58205666]
[1763622854061,0.05210249,91958.0,91957.0,0.58205666]
[1763622854288,0.02060266,91978.0,91977.0,0.21744566]
[1763622854496,0.05578249,91978.0,91977.0,0.01593]
[1763622854702,0.07638515,91978.0,91977.0,0.01593]
[1763622855105,0.07270515,91978.0,91977.0,0.01593]
[1763622855247,0.07638515,91978.0,91977.0,0.01593]
[1763622855648,0.07738515,91978.0,91977.0,0.01593]
[1763622856380,0.05678249,91978.0,91977.0,0.23337566]
[1763622858658,0.05310249,91978.0,91977.0,0.23337566]
[1763622858859,0.05678249,91978.0,91977.0,0.23337566]
[1763622859647,0.05310249,91978.0,91977.0,0.23438962]
[1763622859848,0.05678249,91978.0,91977.0,0.25842962]
[1763622860823,0.05578249,91978.0,91977.0,0.25842962]
[1763622861225,0.05678249,91978.0,91977.0,0.25842962]
[1763622861659,0.05210249,91978.0,91977.0,0.25842962]
[1763622862059,0.05578249,91978.0,91977.0,0.25842962]
[1763622865141,0.05578249,91978.0,91977.0,0.00101396]
[1763622865752,0.07638515,91978.0,91977.0,0.00101396]
[1763622868863,0.05578249,91978.0,91977.0,0.00101396]
[1763622869093,0.07638515,91978.0,91977.0,0.00101396]
[1763622874402,0.07638515,91978.0,91977.0,0.21845962]
[1763622874616,0.07270515,91978.0,91977.0,0.21845962]
[1763622874841,0.07638515,91978.0,91977.0,0.21845962]
[1763622875048,0.05210249,91978.0,91977.0,0.25838962]
[1763622875263,0.05578249,91978.0,91977.0,0.25838962]
[1763622875476,0.05578249,91978.0,91977.0,0.23401962]
[1763622876029,0.05578249,91978.0,91977.0,0.21845962]
[1763622876439,0.05578249,91978.0,91977.0,0.25838962]
[1763622878462,0.05210249,91978.0,91977.0,0.25838962]
[1763622878665,0.05578249,91978.0,91977.0,0.25838962]
[1763622879269,0.05578249,91978.0,91977.0,0.23401962]
[1763622879468,0.05578249,91978.0,91977.0,0.01657396]
[1763622879670,0.05578249,91978.0,91977.0,0.00101396]
[1763622880040,0.05210249,91978.0,91977.0,0.00101396]
[1763622880242,0.05578249,91978.0,91977.0,0.00101396]
[1763622881995,0.07638515,91978.0,91977.0,0.00101396]
[1763622889136,0.00642782,92025.0,91978.0,3.0]
[1763622889415,0.00135408,92043.0,92041.0,0.21729446]
[1763622889623,0.00135408,92043.0,92042.0,0.323]
[1763622889832,1e-08,92043.0,92042.0,0.323]
[1763622890054,0.0002,92070.0,92069.0,0.54022838]
[1763622890259,0.00388,92070.0,92069.0,0.54022838]
[1763622890466,0.0002,92070.0,92069.0,0.54022838]
[1763622891133,1e-08,92070.0,92069.0,0.54022838]
[1763622891339,1e-08,92070.0,92069.0,0.64370126]
[1763622891733,1e-08,92070.0,92069.0,0.42647288]
[1763622891878,1e-08,92070.0,92069.0,0.64370126]
[1763622892882,1e-08,92070.0,92069.0,0.70176153]
[1763622893090,1e-08,92070.0,92069.0,0.64370126]
[1763622893667,0.00100001,92070.0,92069.0,0.64370126]
[1763622893791,0.00100001,92070.0,92069.0,0.68234667]
[1763622893992,0.00100001,92070.0,92069.0,0.64370126]
[1763622894254,0.12600691,92070.0,92069.0,0.64370126]
[1763622894816,0.00368,92090.0,92089.0,0.5401812]
[1763622895022,0.0002,92110.0,92100.0,0.21715526]
[1763622895248,0.01551,92101.0,92100.0,0.21715526]
[1763622895651,0.0002,92110.0,92100.0,0.21715526]
[1763622895652,0.0002,92110.0,92109.0,0.21713404]
[1763622895853,0.00388,92110.0,92109.0,0.21713404]
[1763622896051,0.0002,92110.0,92109.0,0.21713404]
[1763622896207,0.00388,92110.0,92109.0,0.21713404]
[1763622897587,0.01955,92110.0,92107.0,0.22799444]
[1763622897783,0.01567,92108.0,92107.0,0.22799444]
[1763622898419,0.03829,92108.0,92107.0,0.22799444]
[1763622898798,0.01567,92108.0,92107.0,0.22799444]
[1763622899249,0.00388,92110.0,92107.0,0.22799444]
[1763622900076,0.0002,92110.0,92107.0,0.22799444]
[1763622900290,0.0002,92110.0,92109.0,0.54013404]
[1763622902649,0.0002,92110.0,92109.0,0.323]
[1763622903296,0.03973,92110.0,92109.0,0.323]
[1763622903525,0.03973,92110.0,92107.0,0.01085693]
[1763622903741,0.02431,92110.0,92107.0,0.01085693]
[1763622903951,0.0002,92110.0,92108.0,0.21713491]
[1763622904162,0.00368,92109.0,92108.0,0.21713491]
[1763622904618,0.0002,92110.0,92108.0,0.21713491]
[1763622904843,0.00368,92109.0,92108.0,0.21713491]
[1763622905065,0.0191,92109.0,92108.0,0.21713491]
[1763622905483,0.0191,92109.0,92108.0,0.24010847]
[1763622905693,0.00368,92109.0,92108.0,0.24010847]
[1763622905908,0.0002,92110.0,92108.0,0.24010847]
[1763622906123,0.00190879,92109.0,92108.0,0.54013491]
[1763622906341,0.00190879,92109.0,92108.0,0.5631051]
[1763622906549,0.01732879,92109.0,92108.0,0.2401051]
[1763622906752,0.01732879,92109.0,92108.0,0.27839205]
[1763622907384,0.01732879,92109.0,92108.0,0.2401051]
[1763622907593,0.00190879,92109.0,92108.0,0.2401051]
[1763622908381,0.00190879,92109.0,92108.0,0.29753397]
[1763622908629,0.00190879,92109.0,92108.0,0.2401051]
[1763622909058,0.00190879,92109.0,92108.0,0.2975518]
[1763622909259,0.00190879,92109.0,92108.0,0.2401051]
[1763622909784,0.00558879,92109.0,92108.0,0.2401051]
[1763622910188,0.00368,92109.0,92108.0,0.2401051]
[1763622911159,0.00368,92109.0,92108.0,0.29759393]
[1763622911375,0.0191,92109.0,92108.0,0.02297019]
[1763622911594,0.04321,92109.0,92108.0,0.02297019]
[1763622913275,0.04321,92109.0,92108.0,0.08049595]
[1763622913490,0.26034404,92109.0,92102.0,0.01085752]
[1763622913636,0.26034404,92109.0,92097.0,0.21716036]
[1763622913637,0.0269,92103.0,92097.0,0.01085811]
[1763622913999,0.21716469,92096.0,92082.0,0.01085988]
[1763622914169,0.01085882,92091.0,92080.0,0.4783169]
[1763622914384,0.0269,92081.0,92075.0,0.22807363]
[1763622914733,0.0269,92081.0,92077.0,0.01086047]
[1763622914734,0.00368,92080.0,92077.0,0.01086047]
[1763622914917,0.00368,92080.0,92078.0,0.02308153]
[1763622915135,0.00368,92080.0,92079.0,0.02308153]
[1763622915515,0.0191,92080.0,92079.0,0.02308153]
[1763622916282,0.00368,92080.0,92079.0,0.24028632]
[1763622916526,0.0191,92080.0,92079.0,0.02308153]
[1763622916947,0.04321,92080.0,92079.0,0.02308153]
[1763622917388,0.04321,92080.0,92079.0,0.10001998]
[1763622917389,0.04421,92080.0,92079.0,0.10001998]
[1763622917992,0.04421,92080.0,92079.0,0.02308153]
[1763622918391,0.0191,92080.0,92079.0,0.02308153]
[1763622918593,0.0191,92080.0,92079.0,0.10066211]
[1763622918793,0.0191,92080.0,92079.0,0.02308153]
[1763622920337,0.09531249,92080.0,92079.0,0.02308153]
[1763622920541,0.09531249,92080.0,92079.0,0.02408153]
[1763622920746,0.07120249,92080.0,92079.0,0.02308153]
[1763622920951,0.07120249,92080.0,92079.0,0.02208153]
[1763622921151,0.09531249,92080.0,92079.0,0.02208153]
[1763622921351,0.31251492,92080.0,92079.0,0.02208153]
[1763622921574,0.09531249,92080.0,92079.0,0.02208153]
[1763622922991,0.0191,92080.0,92079.0,0.02208153]
[1763622923977,0.04321,92080.0,92079.0,0.02208153]
[1763622924577,0.0191,92080.0,92079.0,0.02208153]
[1763622925529,0.05210249,92082.0,92080.0,0.21720243]
[1763622925730,0.05578249,92081.0,92080.0,0.21720243]
[1763622925871,0.07120249,92081.0,92080.0,0.21720243]
[1763622926071,0.06752249,92081.0,92080.0,0.21720243]
[1763622926276,0.0191,92081.0,92080.0,0.21720243]
[1763622926625,0.0191,92081.0,92078.0,0.00135297]
[1763622926822,0.01542,92079.0,92078.0,0.00135297]
[1763622927165,0.25673479,92079.0,92078.0,0.00135297]
[1763622927442,0.03953,92079.0,92078.0,0.00135297]
[1763622929872,0.03953,92079.0,92078.0,0.21856012]
[1763622930076,0.01542,92079.0,92078.0,0.21856012]
[1763622930256,0.00368,92079.0,92078.0,0.21856012]
[1763622931502,0.06358249,92093.0,92078.0,0.21856012]
[1763622931503,0.1963,92102.0,92101.0,0.2171529]
[1763622931677,0.00368,92102.0,92101.0,0.2171529]
[1763622931901,0.01978,92102.0,92101.0,0.2171529]
[1763622932493,0.01978,92102.0,92097.0,0.21716197]
[1763622932494,0.04275,92102.0,92087.0,0.217184]
[1763622932693,0.25465967,92102.0,92096.0,0.01085823]
[1763622932888,0.02297,92101.0,92097.0,0.02334001]
[1763622933120,0.02297,92101.0,92098.0,0.02334001]
[1763622933314,0.02297,92101.0,92099.0,0.02334001]
[1763622933649,0.02297,92101.0,92100.0,0.02334001]
[1763622934063,0.03819,92101.0,92100.0,0.02334001]
[1763622935360,0.04904764,92101.0,92096.0,0.01085823]
[1763622935534,0.03382764,92101.0,92097.0,0.01085811]
[1763622935738,0.02297,92100.0,92097.0,0.22801881]
[1763622935946,0.01522,92098.0,92097.0,0.22801881]
[1763622936357,0.01148,92103.0,92102.0,0.21715055]
[1763622936732,0.05335,92103.0,92102.0,0.21715055]
[1763622937051,0.05335,92103.0,92102.0,0.21337403]
[1763622937932,0.03038,92103.0,92102.0,0.21337403]
[1763622939575,0.0267,92103.0,92102.0,0.21337403]
[1763622939907,0.01516,92103.0,92102.0,0.21337403]
[1763622940774,0.01516,92103.0,92102.0,0.21437403]
[1763622941178,0.01516,92103.0,92102.0,0.21815055]
[1763622941385,0.03038,92103.0,92102.0,0.001]
[1763622941588,0.03038,92103.0,92102.0,0.21815055]
[1763622943445,0.03038,92103.0,92102.0,0.001]
[1763622943725,0.05335,92103.0,92102.0,0.001]
[1763622944944,0.01522,92100.0,92093.0,0.01085858]
[1763622945149,0.01522,92094.0,92093.0,0.01085858]
[1763622945746,0.01148,92103.0,92099.0,0.01085788]
[1763622945953,0.00368,92102.0,92100.0,0.22801302]
[1763622946361,0.01522,92101.0,92100.0,0.22801302]
[1763622947995,0.01522,92101.0,92100.0,0.22901302]
[1763622948146,0.03819,92101.0,92100.0,0.22901302]
[1763622950114,0.03819,92101.0,92100.0,0.01185776]
[1763622950537,0.03819,92101.0,92100.0,0.001]
[1763622954370,0.09029249,92101.0,92100.0,0.001]
[1763622954576,0.19376537,92101.0,92100.0,0.001]
[1763622959686,0.05210249,92090.0,92088.0,0.03892329]
[1763622959895,0.08239249,92089.0,92088.0,0.03892329]
[1763622960115,0.29957369,92089.0,92088.0,0.03892329]
[1763622960320,0.22804662,92087.0,92084.0,0.05838494]
[1763622960612,0.01522,92085.0,92084.0,0.05838494]
[1763622961026,0.03819,92085.0,92084.0,0.05838494]
[1763622961229,0.03819,92085.0,92083.0,0.21719323]
[1763622961443,0.06717249,92089.0,92087.0,0.21718536]
[1763622961848,0.01522,92088.0,92087.0,0.21718536]
[1763622962056,0.03896,92088.0,92086.0,0.22804673]
[1763622962265,0.01626,92087.0,92086.0,0.22804673]
[1763622962470,0.04,92087.0,92086.0,0.22804673]
[1763622962887,0.01994,92087.0,92086.0,0.22804673]
[1763622963020,0.01994,92087.0,92084.0,0.05864154]
[1763622963224,0.01626,92085.0,92084.0,0.05864154]
[1763622963424,0.01085964,92084.0,92080.0,0.09952323]
[1763622963628,0.03459964,92084.0,92080.0,0.11038335]
[1763622963830,0.01626,92081.0,92080.0,0.11038335]
[1763622964332,0.04,92081.0,92080.0,0.11038335]
[1763622964861,0.04,92081.0,92078.0,0.21855793]
[1763622965023,0.04,92080.0,92078.0,0.21855793]
[1763622965682,0.01626,92080.0,92078.0,0.21855793]
[1763622966093,0.04,92080.0,92078.0,0.21855793]
[1763622966300,0.01626,92080.0,92078.0,0.21855793]
[1763622967365,0.04,92080.0,92078.0,0.00135297]
[1763622967587,0.04,92079.0,92078.0,0.00135297]
[1763622969909,0.09578249,92079.0,92078.0,0.00135297]
[1763622970266,0.07304249,92079.0,92078.0,0.00135297]
[1763622970863,0.09578249,92079.0,92078.0,0.00135297]
[1763622974344,0.00368,92079.0,92078.0,0.04041329]
[1763622974553,0.23714479,92079.0,92078.0,0.04041329]
[1763622974768,0.04368,92079.0,92078.0,0.04041329]
[1763622975197,0.04368,92079.0,92078.0,0.00135297]
[1763622975625,0.04368,92079.0,92078.0,0.2575978]
[1763622975838,0.04368,92079.0,92078.0,0.21856012]
[1763622976253,0.04368,92079.0,92078.0,0.00135297]
[1763622981034,0.04368,92079.0,92060.0,0.20052548]
[1763622981035,0.26936154,92056.0,92055.0,0.03903994]
[1763622981250,0.01086602,92030.0,92025.0,0.07777102]
[1763622981454,0.01086602,92030.0,92013.0,0.01086802]
[1763622981455,0.01226,92026.0,92013.0,0.07777102]
[1763622981661,0.036,92025.0,92017.0,0.33386755]
[1763622981864,0.036,92025.0,92019.0,0.22821167]
[1763622982072,0.01226,92025.0,92024.0,0.2173346]
[1763622982617,0.05226,92025.0,92024.0,0.2173346]
[1763622983466,0.05594,92025.0,92024.0,0.2183346]
[1763622983657,0.05594,92025.0,92024.0,0.2193346]
[1763622986142,0.01226,92037.0,92034.0,0.21731099]
[1763622986281,0.01226,92037.0,92036.0,0.21730627]
[1763622986925,0.01594,92037.0,92036.0,0.21852181]
[1763622987140,0.01226,92042.0,92041.0,0.21729446]
[1763622987425,0.01226,92059.0,92058.0,0.21725433]
[1763622987627,0.0532,92059.0,92058.0,0.21725433]
[1763622987877,0.10530249,92059.0,92058.0,0.21725433]
[1763622988061,0.01226,92063.0,92062.0,0.2172449]
[1763622988295,0.01594,92063.0,92060.0,0.01086248]
[1763622988528,0.01594,92063.0,92061.0,0.21724514]
[1763622989033,0.01518,92062.0,92061.0,0.21724514]
[1763622989349,0.03986,92062.0,92060.0,0.22810999]
[1763622989550,0.01518,92061.0,92060.0,0.22810999]
[1763622989754,0.03986,92061.0,92060.0,0.22810999]
[1763622990815,0.001,92062.0,92060.0,0.22810999]
[1763622991588,0.01226,92071.0,92070.0,0.21722602]
[1763622991794,0.06804249,92071.0,92070.0,0.21722602]
[1763622991997,0.08322249,92071.0,92070.0,0.21722602]
[1763622992199,0.07954249,92071.0,92070.0,0.21722602]
[1763622992750,0.01594,92071.0,92070.0,0.21722602]
[1763622993125,0.01594,92071.0,92070.0,0.21745747]
[1763622993427,0.01694,92071.0,92070.0,0.21745747]
[1763622995958,0.001,92071.0,92070.0,0.21745747]
[1763622996521,0.00468,92071.0,92070.0,0.21745747]
[1763622997558,0.00468,92071.0,92070.0,0.54045747]
[1763622998203,0.001,92071.0,92070.0,0.54045747]
[1763622998808,0.00368,92076.0,92075.0,0.54021422]
[1763622999145,0.00368,92076.0,92073.0,0.22807796]
[1763622999146,0.01162,92100.0,92099.0,0.21715762]
[1763622999284,0.0153,92100.0,92099.0,0.21715762]
[1763622999487,0.03144,92100.0,92099.0,0.21715762]
[1763622999689,0.08354249,92100.0,92099.0,0.21715762]
[1763622999966,0.10702249,92100.0,92097.0,0.01085811]
[1763623000148,0.01614,92098.0,92097.0,0.01085811]
[1763623001918,0.06824249,92098.0,92097.0,0.01085811]
[1763623002167,0.07192249,92098.0,92097.0,0.01085811]
[1763623003771,0.0629606,92097.0,92086.0,0.2280457]
[1763623003968,0.0277,92090.0,92089.0,0.33385906]
[1763623005023,0.01156,92090.0,92089.0,0.33385906]
[1763623006382,0.01085906,92089.0,92087.0,0.323]
[1763623006567,0.01086094,92073.0,92070.0,0.00023145]
[1763623006773,0.0277,92071.0,92070.0,0.00023145]
[1763623007206,0.05118,92071.0,92070.0,0.00023145]
[1763623008425,0.05118,92071.0,92070.0,0.21745747]
[1763623008624,0.05118,92071.0,92070.0,0.00023145]
[1763623009440,0.26840366,92071.0,92070.0,0.00023145]
[1763623009594,0.05118,92071.0,92070.0,0.00023145]
[1763623010933,0.26840366,92071.0,92070.0,0.00023145]
[1763623011136,0.32050615,92071.0,92070.0,0.00023145]
[1763623011812,0.01086354,92051.0,92042.0,0.21729065]
[1763623012012,0.00368,92050.0,92046.0,0.01086413]
[1763623012215,0.00368,92050.0,92044.0,0.21728574]
[1763623012216,0.01086377,92049.0,92045.0,0.01086425]
[1763623012416,0.01524,92050.0,92045.0,0.01086425]
[1763623012642,0.0277,92046.0,92044.0,0.323]
[1763623012840,0.01614,92045.0,92042.0,0.0108646]
[1763623013315,0.01614,92045.0,92042.0,0.3338646]
[1763623014115,0.01614,92045.0,92042.0,0.55115451]
[1763623014543,0.01614,92045.0,92042.0,0.3338646]
[1763623014740,0.01156,92046.0,92043.0,0.22815422]
[1763623015104,0.01156,92046.0,92045.0,0.21728502]
[1763623015533,0.01156,92046.0,92043.0,0.22815422]
[1763623015726,0.01156,92046.0,92045.0,0.21728502]
[1763623015931,0.01156,92050.0,92047.0,0.01086401]
[1763623016145,0.01156,92050.0,92046.0,0.01086413]
[1763623016146,0.00368,92049.0,92046.0,0.01086413]
[1763623016713,0.22095635,92049.0,92045.0,0.01086425]
[1763623016923,0.00368,92049.0,92046.0,0.01086413]
[1763623017333,0.01454377,92049.0,92044.0,0.22814997]
[1763623017537,0.00368,92049.0,92048.0,0.00063665]
[1763623019321,0.2396987,92050.0,92048.0,0.00063665]
[1763623019545,0.01086401,92047.0,92043.0,0.01086448]
[1763623019757,0.01454413,92046.0,92042.0,0.0108646]
[1763623019962,0.00368,92046.0,92043.0,0.2281522]
[1763623020173,0.00368,92046.0,92044.0,0.21728518]
[1763623020421,0.00368,92046.0,92043.0,0.01086448]
[1763623020632,0.00368,92046.0,92043.0,0.33386448]
[1763623020837,0.00368,92046.0,92043.0,0.323]
[1763623020838,0.23342738,92044.0,92043.0,0.323]
[1763623021059,0.23342738,92044.0,92043.0,0.324]
[1763623021273,0.25690738,92044.0,92043.0,0.324]
[1763623021478,0.25690738,92044.0,92043.0,0.001]
[1763623021479,0.30900987,92044.0,92043.0,0.001]
[1763623022588,0.30900987,92044.0,92032.0,0.02937502]
[1763623022589,0.22817394,92036.0,92033.0,0.323]
[1763623022841,0.01175,92034.0,92033.0,0.323]
[1763623023058,0.02827,92034.0,92033.0,0.323]
[1763623023742,0.02827,92034.0,92031.0,0.0108659]
[1763623023960,0.00368,92033.0,92031.0,0.0108659]
[1763623024166,0.01652,92032.0,92030.0,0.323]
[1763623024376,0.01652,92031.0,92030.0,0.54032043]